[Event "GER-chT Youth Countries 2018"]
[Site "Wurzburg"]
[Date "2018.10.05"]
[Round "4"]
[White "Woerz, Ann-Sophie"]
[Black "Schulz, Hannah"]
[Result "1-0"]
[ECO "B13"]
[WhiteElo "1463"]
[BlackElo "1527"]
[Annotator "NA"]
[PlyCount "117"]
[EventDate "2018.10.03"]
[EventType "team-tourn"]
[EventCountry "GER"]
[SourceTitle "playchess.com"]
[Source "ChessBase"]
[SourceQuality "1"]
[TimeControl "40/5400+30:1800+30"]

1. e4 {[%emt 0:00:00]} c6 {[%emt 0:00:00]} 2. d4 {[%emt 0:00:00]} d5 {[%emt 0:00:00]} 3. exd5 {[%emt 0:00:00]} cxd5 {[%emt 0:00:00]} 4. Bd3 {[%emt 0:00:00]} Nc6 {[%emt 0:00:00]} 5. c3 {[%emt 0:00:09]} g6 {[%emt 0:00:07]} 6. Bf4 {[%emt 0:00:49]} Bg7 {[%emt 0:00:30]} 7. Nd2 {[%emt 0:02:24]} Nf6 {[%emt 0:01:25]} 8. h3 {[%emt 0:01:01]} O-O {[%emt 0:03:17]} 9. Ngf3 {[%emt 0:02:01]} a6 {[%emt 0:02:56]} 10. O-O {[%emt 0:03:37]} Bf5 {[%emt 0:01:49]} 11. Qc2 {[%emt 0:10:44]} Bxd3 {[%emt 0:04:09]} 12. Qxd3 {[%emt 0:00:02]} Qb6 {[%emt 0:04:09]} 13. b3 {[%emt 0:05:30]} Na7 {[%emt 0:06:44]} 14. Rfe1 {[%emt 0:03:11]} Qd8 {[%emt 0:03:27]} 15. Qe3 {[%emt 0:04:21]} Nc6 {[%emt 0:08:55]} 16. Bh6 {[%emt 0:06:48]} e6 {[%emt 0:03:31]} 17. Bg5 {[%emt 0:04:38]} Qc8 {[%emt 0:05:01]} 18. Rac1 {[%emt 0:02:45]} Ne7 {[%emt 0:02:09]} 19. Ne5 {[%emt 0:02:12]} Nf5 {[%emt 0:01:07]} 20. Qd3 {[%emt 0:02:29]} Ne8 {[%emt 0:04:34]} 21. g4 {[%emt 0:07:54]} f6 {[%emt 0:01:15]} 22. gxf5 {[%emt 0:01:49]} exf5 {[%emt 0:02:19]} 23. Nxg6 {[%emt 0:08:02]} hxg6 {[%emt 0:02:27]} 24. Be3 {[%emt 0:02:01]} Nd6 {[%emt 0:03:47]} 25. c4 {[%emt 0:03:08]} dxc4 {[%emt 0:01:25]} 26. bxc4 {[%emt 0:00:38]} Nf7 {[%emt 0:01:21]} 27. Kh1 {[%emt 0:02:08]} Bh6 {[%emt 0:08:36]} 28. Rg1 {[%emt 0:01:45]} Kh7 {[%emt 0:08:23]} 29. Rce1 {[%emt 0:03:10]} Rg8 {[%emt 0:05:16]} 30. Bxh6 {[%emt 0:01:01]} Kxh6 {[%emt 0:01:51]} 31. Re7 {[%emt 0:01:16]} Kg7 {[%emt 0:03:23]} 32. Rb1 {[%emt 0:04:28]} Rb8 {[%emt 0:02:25]} 33. Rb6 {[%emt 0:01:17]} Re8 {[%emt 0:03:23]} 34. Re3 {[%emt 0:04:17]} Ng5 {[%emt 0:02:43]} 35. d5 {[%emt 0:03:11]} Qc7 {[%emt 0:02:12]} 36. Qd4 {[%emt 0:02:05]} Rxe3 {[%emt 0:00:13]} 37. Qxf6+ {[%emt 0:00:55]} Kg8 {[%emt 0:00:31]} 38. Qxg6+ {[%emt 0:00:59]} Qg7 {[%emt 0:01:30]} 39. fxe3 {[%emt 0:00:39]} Nxh3 {[%emt 0:01:23]} 40. Qxg7+ {[%emt 0:00:07]} Kxg7 {[%emt 0:00:09]} 41. Kg2 {[%emt 0:30:31]} Ng5 {[%emt 0:30:34]} 42. c5 {[%emt 0:00:47]} Nf7 {[%emt 0:01:19]} 43. c6 {[%emt 0:00:19]} Kf8 {[%emt 0:00:00]} 44. Rxb7 {[%emt 0:00:00]} Rc8 {[%emt 0:00:00]} 45. e4 {[%emt 0:00:00]} Nd6 {[%emt 0:00:00]} 46. Rh7 {[%emt 0:00:00]} Re8 {[%emt 0:00:00]} 47. Rh8+ {[%emt 0:00:00]} Kf7 {[%emt 0:00:00]} 48. Rxe8 {[%emt 0:00:00]} Kxe8 {[%emt 0:00:00]} 49. e5 {[%emt 0:00:00]} Nf7 {[%emt 0:00:00]} 50. c7 {[%emt 0:00:00]} Kd7 {[%emt 0:00:00]} 51. e6+ {[%emt 0:00:00]} Kxc7 {[%emt 0:00:00]} 52. exf7 {[%emt 0:00:00]} f4 {[%emt 0:00:00]} 53. f8=Q {[%emt 0:00:00]} f3+ {[%emt 0:00:00]} 54. Kxf3 {[%emt 0:00:00]} Kd7 {[%emt 0:00:00]} 55. Ke4 {[%emt 0:00:00]} Kc7 {[%emt 0:00:00]} 56. d6+ {[%emt 0:00:00]} Kb7 {[%emt 0:00:00]} 57. Kd5 {[%emt 0:00:00]} a5 {[%emt 0:00:00]} 58. Qe7+ {[%emt 0:00:00]} Kb6 {[%emt 0:00:00]} 59. Qc7+ {[%emt 0:00:00] Kb7 [%clk 0:30:29] Qxb7 [%clk 0:36:31]} 1-0

[Event "GER-chT Youth Countries 2018"]
[Site "Wurzburg"]
[Date "2018.10.05"]
[Round "4"]
[White "Kageler, Anton Paul"]
[Black "Metzdorf, Matteo"]
[Result "0-1"]
[ECO "C11"]
[WhiteElo "1459"]
[BlackElo "1806"]
[Annotator "NA"]
[PlyCount "50"]
[EventDate "2018.10.03"]
[EventType "team-tourn"]
[EventCountry "GER"]
[SourceTitle "playchess.com"]
[Source "ChessBase"]
[SourceQuality "1"]
[TimeControl "40/5400+30:1800+30"]

1. e4 {[%emt 0:00:00]} e6 {[%emt 0:00:00]} 2. d4 {[%emt 0:00:00]} d5 {[%emt 0:00:00]} 3. Nc3 {[%emt 0:00:00]} Nf6 {[%emt 0:00:00]} 4. Bg5 {[%emt 0:00:00]} dxe4 {[%emt 0:00:01]} 5. Nxe4 {[%emt 0:00:03]} Be7 {[%emt 0:00:09]} 6. Nxf6+ {[%emt 0:02:25] LiveBook: 165 Games} gxf6 $14 {[%emt 0:00:47]} 7. Be3 {[%emt 0:01:50]} a6 {[%emt 0:13:34]} 8. a4 {[%emt 0:05:43]} Nc6 {[%emt 0:01:57]} 9. c3 {[%emt 0:03:04]} b6 {[%emt 0:06:13]} 10. Bd3 {[%emt 0:03:17]} Bb7 {[%emt 0:07:54]} 11. Ne2 {[%emt 0:03:17]} Qd7 {[%emt 0:04:31]} 12. O-O {[%emt 0:02:23]} O-O-O {[%emt 0:03:56]} 13. b4 {[%emt 0:02:34]} Rdg8 {[%emt 0:16:22]} 14. Ng3 {[%emt 0:05:04]} h5 {[%emt 0:06:58]} 15. b5 {[%emt 0:02:25]} axb5 {[%emt 0:03:09]} 16. axb5 {[%emt 0:00:11]} Nb8 {[%emt 0:05:22]} 17. h4 {[%emt 0:06:58]} f5 {[%emt 0:02:18]} 18. c4 {[%emt 0:08:10]} Bxh4 {[%emt 0:07:41]} 19. c5 {[%emt 0:03:30]} Bxg3 {[%emt 0:05:03]} 20. fxg3 {[%emt 0:02:18]} Rxg3 {[%emt 0:02:49]} 21. c6 {[%emt 0:01:03]} Nxc6 {[%emt 0:00:22]} 22. bxc6 {[%emt 0:01:09]} Qxc6 {[%emt 0:00:17]} 23. Rf2 {[%emt 0:00:35]} Rxg2+ {[%emt 0:00:13]} 24. Kf1 {[%emt 0:00:12]} Rg1+ {[%emt 0:00:44]} 25. Ke2 {[%emt 0:00:09]} Rxd1 {[%emt 0:00:13]} 0-1

[Event "GER-chT Youth Countries 2018"]
[Site "Wurzburg"]
[Date "2018.10.05"]
[Round "4"]
[White "Alferova, Emily"]
[Black "Zoellner, Bente"]
[Result "0-1"]
[ECO "B21"]
[WhiteElo "1316"]
[BlackElo "1354"]
[Annotator "NA"]
[PlyCount "120"]
[EventDate "2018.10.03"]
[EventType "team-tourn"]
[EventCountry "GER"]
[SourceTitle "playchess.com"]
[Source "ChessBase"]
[SourceQuality "1"]
[TimeControl "40/5400+30:1800+30"]

1. e4 {[%emt 0:00:00]} c5 {[%emt 0:00:00]} 2. d4 {[%emt 0:00:00]} cxd4 {[%emt 0:00:00]} 3. c3 {[%emt 0:00:00]} dxc3 {[%emt 0:00:00]} 4. Nxc3 {[%emt 0:00:00]} Nc6 {[%emt 0:00:00]} 5. Nf3 {[%emt 0:00:11]} e6 {[%emt 0:00:03]} 6. Bc4 {[%emt 0:00:42]} Nge7 {[%emt 0:00:11]} 7. Bg5 {[%emt 0:01:24]} a6 {[%emt 0:00:32]} 8. O-O {[%emt 0:02:05]} b5 {[%emt 0:01:49]} 9. Bb3 {[%emt 0:00:50]} Bb7 {[%emt 0:00:30]} 10. Qe2 {[%emt 0:02:02]} Qa5 {[%emt 0:00:55]} 11. Bd2 {[%emt 0:02:43]} Ng6 {[%emt 0:02:37]} 12. Qe3 {[%emt 0:06:42]} Be7 {[%emt 0:02:10]} 13. Rfd1 {[%emt 0:03:03]} Qc7 {[%emt 0:02:09]} 14. Rac1 {[%emt 0:02:11]} O-O {[%emt 0:00:26]} 15. Qe2 {[%emt 0:09:05]} Rac8 {[%emt 0:03:57]} 16. Be3 {[%emt 0:07:19]} Nge5 {[%emt 0:05:04]} 17. Nxe5 {[%emt 0:01:24]} Nxe5 {[%emt 0:00:54]} 18. Nxb5 {[%emt 0:05:53]} Qb8 {[%emt 0:01:37]} 19. Nc3 {[%emt 0:02:53]} Rcd8 {[%emt 0:01:43]} 20. Bb6 {[%emt 0:05:53]} Rc8 {[%emt 0:01:11]} 21. Bd4 {[%emt 0:01:48]} Ng6 {[%emt 0:00:55]} 22. Be3 {[%emt 0:01:21]} Bd6 {[%emt 0:01:13]} 23. h3 {[%emt 0:01:19]} Bh2+ {[%emt 0:07:15]} 24. Kh1 {[%emt 0:00:09]} Bd6 {[%emt 0:00:18]} 25. Qd3 {[%emt 0:04:27]} Be7 {[%emt 0:05:09]} 26. Qe2 {[%emt 0:03:34]} Qc7 {[%emt 0:03:11]} 27. Nd5 {[%emt 0:02:59]} Qd8 {[%emt 0:01:59]} 28. Nxe7+ {[%emt 0:00:57]} Nxe7 {[%emt 0:00:53]} 29. Qd3 {[%emt 0:02:11]} Rxc1 {[%emt 0:01:07]} 30. Rxc1 {[%emt 0:00:09]} Nc8 {[%emt 0:04:20]} 31. Bc5 {[%emt 0:01:55]} Qc7 {[%emt 0:05:15]} 32. Rc2 {[%emt 0:02:07]} d6 {[%emt 0:04:12]} 33. Ba3 {[%emt 0:01:23]} Qb6 {[%emt 0:01:12]} 34. e5 {[%emt 0:02:56]} Rd8 {[%emt 0:02:26]} 35. Rd2 {[%emt 0:00:55]} Qc6 {[%emt 0:02:23]} 36. f3 {[%emt 0:00:35]} d5 {[%emt 0:00:46]} 37. Rc2 {[%emt 0:02:32]} Qb5 {[%emt 0:01:33]} 38. Qxb5 {[%emt 0:02:11]} axb5 {[%emt 0:00:17]} 39. Rc7 {[%emt 0:01:18]} Ba8 {[%emt 0:01:45]} 40. Be7 {[%emt 0:02:37]} Nxe7 {[%emt 0:01:53]} 41. Rxe7 {[%emt 0:30:08]} Rc8 {[%emt 0:30:47]} 42. Bc2 {[%emt 0:01:12]} Kf8 {[%emt 0:00:45]} 43. Ra7 {[%emt 0:00:39]} Rxc2 {[%emt 0:07:31]} 44. Rxa8+ {[%emt 0:00:16]} Ke7 {[%emt 0:00:05]} 45. b3 {[%emt 0:01:29]} d4 {[%emt 0:04:03]} 46. Ra7+ {[%emt 0:01:31]} Ke8 {[%emt 0:00:40]} 47. Ra8+ {[%emt 0:00:10]} Kd7 {[%emt 0:00:12]} 48. Ra7+ {[%emt 0:00:52]} Rc7 {[%emt 0:01:54]} 49. Rxc7+ {[%emt 0:00:09]} Kxc7 {[%emt 0:00:06]} 50. Kg1 {[%emt 0:00:18]} Kc6 {[%emt 0:01:03]} 51. Kf2 {[%emt 0:00:09]} Kd5 {[%emt 0:02:58]} 52. Ke2 {[%emt 0:00:30]} Kxe5 {[%emt 0:00:28]} 53. Kd3 {[%emt 0:00:08]} Kd5 {[%emt 0:00:09]} 54. a4 {[%emt 0:00:09]} bxa4 {[%emt 0:00:09]} 55. bxa4 {[%emt 0:00:07]} e5 {[%emt 0:00:16]} 56. a5 {[%emt 0:01:04]} Kc5 {[%emt 0:00:21]} 57. a6 {[%emt 0:00:17]} Kb6 {[%emt 0:00:06]} 58. a7 {[%emt 0:00:09]} Kxa7 {[%emt 0:00:06]} 59. Ke4 {[%emt 0:00:23]} Kb6 {[%emt 0:00:18]} 60. Kxe5 {[%emt 0:00:09]} d3 {[%emt 0:00:13]} 0-1

[Event "GER-chT Youth Countries 2018"]
[Site "Wurzburg"]
[Date "2018.10.05"]
[Round "4"]
[White "Nguyen, Jenny Ha-Linh"]
[Black "Langer, Paul Georg"]
[Result "0-1"]
[ECO "B22"]
[WhiteElo "1230"]
[BlackElo "1348"]
[Annotator "NA"]
[PlyCount "84"]
[EventDate "2018.10.03"]
[EventType "team-tourn"]
[EventCountry "GER"]
[SourceTitle "playchess.com"]
[Source "ChessBase"]
[SourceQuality "1"]
[TimeControl "40/5400+30:1800+30"]

1. e4 {[%emt 0:00:00]} c5 {[%emt 0:00:00]} 2. c3 {[%emt 0:00:00]} Nf6 {[%emt 0:00:55]} 3. e5 {[%emt 0:00:00]} Nd5 {[%emt 0:00:17]} 4. d4 {[%emt 0:00:02]} e6 {[%emt 0:00:32]} 5. Nf3 {[%emt 0:00:22]} b6 {[%emt 0:00:41]} 6. Bd3 {[%emt 0:00:54]} Bb7 {[%emt 0:00:31]} 7. O-O {[%emt 0:01:01]} Be7 {[%emt 0:00:19]} 8. Re1 {[%emt 0:02:19]} O-O {[%emt 0:00:52]} 9. Bc2 {[%emt 0:00:15]} f6 {[%emt 0:03:06]} 10. Qd3 {[%emt 0:02:47]} f5 {[%emt 0:02:26]} 11. a3 {[%emt 0:05:02]} Ba6 {[%emt 0:00:43]} 12. Qd1 {[%emt 0:02:07]} Nc6 {[%emt 0:08:12]} 13. Nbd2 {[%emt 0:04:58]} cxd4 {[%emt 0:01:48]} 14. cxd4 {[%emt 0:00:26]} Rc8 {[%emt 0:00:59]} 15. Nb3 {[%emt 0:03:19]} Qc7 {[%emt 0:16:45]} 16. Bd2 {[%emt 0:04:08]} Nd8 {[%emt 0:07:49]} 17. Rc1 {[%emt 0:00:53]} Qb7 {[%emt 0:01:27]} 18. Bb1 {[%emt 0:17:36]} Nf7 {[%emt 0:01:24]} 19. Bc3 {[%emt 0:04:04]} Nxc3 {[%emt 0:02:11]} 20. bxc3 {[%emt 0:00:24]} Bxa3 {[%emt 0:00:50]} 21. Rc2 {[%emt 0:00:07]} Rc7 {[%emt 0:05:29]} 22. Ra2 {[%emt 0:02:09]} Be7 {[%emt 0:01:08]} 23. Qd2 {[%emt 0:00:21]} Bc4 {[%emt 0:00:53]} 24. Rb2 {[%emt 0:00:26]} Qd5 {[%emt 0:03:44]} 25. Ba2 {[%emt 0:00:30]} Ba3 {[%emt 0:00:24]} 26. Rbb1 {[%emt 0:00:12]} Rfc8 {[%emt 0:01:34]} 27. Re3 {[%emt 0:00:41]} a5 {[%emt 0:01:40]} 28. Nc1 {[%emt 0:04:15]} Bxc1 {[%emt 0:00:36]} 29. Qxc1 Bxa2 30. Rxb6 {[%emt 0:00:21]} Rb7 {[%emt 0:00:40]} 31. Rxb7 {[%emt 0:00:17]} Qxb7 {[%emt 0:00:14]} 32. Qa3 {[%emt 0:00:20]} Bd5 {[%emt 0:05:11]} 33. Qxa5 {[%emt 0:00:25]} Ng5 {[%emt 0:01:32]} 34. h3 {[%emt 0:00:55]} Nxf3+ {[%emt 0:00:50]} 35. gxf3 {[%emt 0:00:08]} Bxf3 {[%emt 0:00:35]} 36. Re1 {[%emt 0:00:34]} Bh1 {[%emt 0:00:36]} 37. Kf1 {[%emt 0:00:12]} Ra8 {[%emt 0:01:28]} 38. Qc5 {[%emt 0:00:18]} Qg2+ {[%emt 0:00:27]} 39. Ke2 {[%emt 0:00:05]} Qe4+ {[%emt 0:01:15]} 40. Kf1 {[%emt 0:00:19]} Qd3+ {[%emt 0:01:35]} 41. Kg1 {[%emt 0:30:11]} Qxh3 {[%emt 0:30:18]} 42. Rd1 {[%emt 0:00:42]} Qg2# 0-1

[Event "GER-chT Youth Countries 2018"]
[Site "Wurzburg"]
[Date "2018.10.05"]
[Round "4"]
[White "Praus, Pia-Rosa"]
[Black "Pohle, Saskia"]
[Result "0-1"]
[ECO "A45"]
[WhiteElo "1150"]
[BlackElo "1690"]
[Annotator "NA"]
[PlyCount "96"]
[EventDate "2018.10.03"]
[EventType "team-tourn"]
[EventCountry "GER"]
[SourceTitle "playchess.com"]
[Source "ChessBase"]
[SourceQuality "1"]
[TimeControl "40/5400+30:1800+30"]

1. d4 {[%emt 0:00:00]} Nf6 {[%emt 0:00:00]} 2. Bf4 {[%emt 0:00:00]} g6 {[%emt 0:00:00]} 3. e3 {[%emt 0:00:14]} Bg7 {[%emt 0:00:00]} 4. c3 {[%emt 0:02:12]} O-O {[%emt 0:00:02]} 5. Nd2 {[%emt 0:01:57]} d6 {[%emt 0:00:28]} 6. Bd3 {[%emt 0:00:48]} Nbd7 {[%emt 0:00:11]} 7. Ngf3 {[%emt 0:01:13]} Qe8 {[%emt 0:02:21]} 8. Qb3 {[%emt 0:10:08]} e5 {[%emt 0:02:30]} 9. dxe5 {[%emt 0:00:41]} dxe5 {[%emt 0:00:19]} 10. Nxe5 {[%emt 0:02:29]} Nxe5 {[%emt 0:00:48]} 11. Be2 {[%emt 0:03:00]} Qe7 {[%emt 0:04:43]} 12. Nf3 {[%emt 0:06:57]} Nxf3+ {[%emt 0:01:23]} 13. Bxf3 {[%emt 0:00:22]} c6 {[%emt 0:00:11]} 14. Rd1 {[%emt 0:00:44]} Be6 {[%emt 0:05:48]} 15. Qc2 {[%emt 0:01:13]} Rfd8 {[%emt 0:01:12]} 16. O-O {[%emt 0:00:32]} Rxd1 {[%emt 0:08:46]} 17. Rxd1 {[%emt 0:00:25]} Rd8 {[%emt 0:00:09]} 18. a3 Nd5 {[%emt 0:05:59]} 19. Qd2 {[%emt 0:05:07]} Rd7 {[%emt 0:00:18]} 20. Qc2 {[%emt 0:02:12]} Nb6 {[%emt 0:04:33]} 21. Rxd7 {[%emt 0:03:33]} Qxd7 {[%emt 0:05:00]} 22. b3 {[%emt 0:04:46]} Nd5 {[%emt 0:04:33]} 23. Bxd5 {[%emt 0:01:05]} Qxd5 {[%emt 0:00:07]} 24. c4 {[%emt 0:00:35]} Qa5 {[%emt 0:00:39]} 25. h3 {[%emt 0:01:39]} Qxa3 {[%emt 0:01:04]} 26. Qd1 {[%emt 0:00:13]} Qa1 {[%emt 0:00:22]} 27. Qxa1 {[%emt 0:00:22]} Bxa1 {[%emt 0:00:04]} 28. Kf1 {[%emt 0:00:17]} Bf5 {[%emt 0:00:29]} 29. Ke2 {[%emt 0:01:31]} Bc2 {[%emt 0:00:23]} 30. b4 {[%emt 0:00:34]} Bc3 {[%emt 0:00:12]} 31. b5 {[%emt 0:00:05]} cxb5 {[%emt 0:00:16]} 32. cxb5 {[%emt 0:00:06]} Kf8 {[%emt 0:00:37]} 33. Bb8 {[%emt 0:00:46]} a6 {[%emt 0:00:05]} 34. bxa6 {[%emt 0:00:04]} bxa6 {[%emt 0:00:05]} 35. f4 {[%emt 0:01:03]} a5 {[%emt 0:00:09]} 36. Bd6+ {[%emt 0:00:27]} Ke8 {[%emt 0:00:07]} 37. Ba3 {[%emt 0:00:04]} Bb4 {[%emt 0:00:15]} 38. Bb2 {[%emt 0:00:14]} a4 {[%emt 0:00:15]} 39. Ba1 {[%emt 0:00:22]} a3 {[%emt 0:00:48]} 40. g4 Kd7 41. h4 {[%emt 0:31:40]} Kc6 {[%emt 0:31:04]} 42. h5 {[%emt 0:00:10]} Kc5 {[%emt 0:00:22]} 43. hxg6 {[%emt 0:00:12]} hxg6 {[%emt 0:00:07]} 44. g5 {[%emt 0:00:06]} Kc4 {[%emt 0:00:10]} 45. Kf2 {[%emt 0:00:17]} Bc3 {[%emt 0:00:07]} 46. Bxc3 {[%emt 0:00:28]} Kxc3 {[%emt 0:00:06]} 47. Kf3 {[%emt 0:00:30]} a2 {[%emt 0:00:06]} 48. Kg4 {[%emt 0:00:01]} a1=Q {[%emt 0:00:16]} 0-1

[Event "GER-chT Youth Countries 2018"]
[Site "Wurzburg"]
[Date "2018.10.05"]
[Round "5"]
[White "Kololli, Martin"]
[Black "Polster, Christian"]
[Result "1/2-1/2"]
[ECO "B22"]
[WhiteElo "2331"]
[BlackElo "2294"]
[Annotator "NA RC"]
[PlyCount "45"]
[EventDate "2018.10.03"]
[EventType "team-tourn"]
[EventCountry "GER"]
[SourceTitle "playchess.com"]
[Source "ChessBase"]
[SourceQuality "1"]
[TimeControl "40/5400+30:1800+30"]

1. e4 {[%emt 0:00:00]} c5 {[%emt 0:00:00]} 2. c3 {[%emt 0:00:00]} Nf6 {[%emt 0:00:39]} 3. e5 {[%emt 0:00:00]} Nd5 {[%emt 0:00:08]} 4. d4 {[%emt 0:00:00]} cxd4 {[%emt 0:00:08]} 5. Nf3 {[%emt 0:00:00]} d6 {[%emt 0:00:26]} 6. cxd4 {[%emt 0:00:26]} Nc6 {[%emt 0:00:15]} 7. Bc4 {[%emt 0:00:06]} Nb6 {[%emt 0:00:21]} 8. Bb5 {[%emt 0:00:06]} dxe5 {[%emt 0:00:16]} 9. Nxe5 {[%emt 0:00:25]} Bd7 {[%emt 0:00:17]} 10. Nc3 {[%emt 0:02:16]} Nxe5 {[%emt 0:07:47]} 11. dxe5 {[%emt 0:00:15]} Bxb5 {[%emt 0:01:06]} 12. Nxb5 {[%emt 0:00:53]} Qxd1+ {[%emt 0:02:12]} 13. Kxd1 {[%emt 0:00:11]} Nd5 {[%emt 0:04:14]} 14. Ke2 {[%emt 0:01:29]} a6 {[%emt 0:00:59]} 15. Rd1 {[%emt 0:01:03]} O-O-O {[%emt 0:00:28]} 16. Nd4 {[%emt 0:14:37]} e6 {[%emt 0:01:00]} 17. Be3 $11 {[%emt 0:01:31]} Be7 {[%emt 0:04:00]} 18. Rac1+ {[%emt 0:03:42]} Kb8 {[%emt 0:00:31]} 19. Nb3 {[%emt 0:00:32]} Rc8 {[%emt 0:18:11]} 20. Kf3 {[%emt 0:04:17]} Rxc1 {[%emt 0:06:22]} 21. Rxc1 {[%emt 0:04:11]} Nb4 {[%emt 0:06:12]} 22. Rd1 {[%emt 0:00:44]} Rc8 {[%emt 0:10:20]} 23. a3 {[%emt 0:04:14]} 1/2-1/2

[Event "GER-chT Youth Countries 2018"]
[Site "Wurzburg"]
[Date "2018.10.05"]
[Round "5"]
[White "Richter, Leonard"]
[Black "Nothnagel, Marian Can"]
[Result "1/2-1/2"]
[ECO "C41"]
[WhiteElo "2322"]
[BlackElo "2341"]
[Annotator "NA RC"]
[PlyCount "76"]
[EventDate "2018.10.03"]
[EventType "team-tourn"]
[EventCountry "GER"]
[SourceTitle "playchess.com"]
[Source "ChessBase"]
[SourceQuality "1"]
[TimeControl "40/5400+30:1800+30"]

1. e4 {[%emt 0:00:00]} e5 {[%emt 0:00:00]} 2. Nf3 {[%emt 0:00:00]} d6 {[%emt 0:00:00]} 3. d4 {[%emt 0:00:00]} exd4 {[%emt 0:00:00]} 4. Qxd4 {[%emt 0:00:00]} Nf6 {[%emt 0:00:00]} 5. Nc3 {[%emt 0:00:00]} Be7 {[%emt 0:00:00]} 6. Bf4 {[%emt 0:00:21]} O-O {[%emt 0:00:00]} 7. O-O-O {[%emt 0:00:12]} Be6 {[%emt 0:09:48]} 8. h3 {[%emt 0:00:58]} a6 {[%emt 0:01:23]} 9. Qe3 {[%emt 0:08:29]} Nfd7 {[%emt 0:15:09]} 10. e5 {[%emt 0:14:12]} dxe5 {[%emt 0:03:12]} 11. Nxe5 {[%emt 0:00:08]} Qc8 {[%emt 0:14:14]} 12. Nd5 {[%emt 0:15:47]} Bxd5 {[%emt 0:02:23]} 13. Rxd5 {[%emt 0:01:06]} Nxe5 {[%emt 0:02:10]} 14. Bxe5 {[%emt 0:07:48]} Nc6 {[%emt 0:00:33]} 15. Bc3 {[%emt 0:09:05]} Qe6 {[%emt 0:15:03]} 16. Qxe6 {[%emt 0:02:57]} fxe6 {[%emt 0:00:04]} 17. Rd7 {[%emt 0:00:42]} Rf7 $11 {[%emt 0:01:12]} 18. f4 {[%emt 0:10:54]} Rxf4 {[%emt 0:04:24]} 19. Rxc7 {[%emt 0:06:48]} Rf7 {[%emt 0:00:06]} 20. Kb1 {[%emt 0:03:56]} Bf6 {[%emt 0:01:04]} 21. Rxf7 {[%emt 0:00:51]} Kxf7 {[%emt 0:00:06]} 22. Bxf6 {[%emt 0:02:45]} gxf6 {[%emt 0:00:10]} 23. Bd3 {[%emt 0:00:20]} Ne5 {[%emt 0:02:42]} 24. Be4 {[%emt 0:03:08]} Rb8 {[%emt 0:00:43]} 25. g4 {[%emt 0:01:02]} h6 {[%emt 0:00:17]} 26. Rd1 {[%emt 0:01:27]} b6 {[%emt 0:00:45]} 27. c3 {[%emt 0:01:36]} Ke7 {[%emt 0:00:10]} 28. Kc2 {[%emt 0:03:24]} h5 {[%emt 0:03:45]} 29. gxh5 {[%emt 0:03:04]} f5 {[%emt 0:00:06]} 30. Bd3 {[%emt 0:00:32]} Nxd3 {[%emt 0:01:40]} 31. Rxd3 {[%emt 0:00:25]} Rh8 {[%emt 0:00:13]} 32. c4 {[%emt 0:00:45]} Rxh5 {[%emt 0:01:20]} 33. Rb3 {[%emt 0:00:38]} Rh4 {[%emt 0:00:30]} 34. Rxb6 {[%emt 0:00:22]} Rxc4+ {[%emt 0:00:05]} 35. Kd3 {[%emt 0:00:43]} Rh4 {[%emt 0:01:43]} 36. Rxa6 {[%emt 0:00:08]} Rxh3+ {[%emt 0:00:46]} 37. Kd4 {[%emt 0:00:29]} Rh4+ {[%emt 0:00:39]} 38. Kc5 {[%emt 0:02:06]} f4 {[%emt 0:11:16]} 1/2-1/2

[Event "GER-chT Youth Countries 2018"]
[Site "Wurzburg"]
[Date "2018.10.05"]
[Round "5"]
[White "Ewert, Hannes"]
[Black "Parvanyan, Ashot"]
[Result "1/2-1/2"]
[ECO "A05"]
[WhiteElo "2314"]
[BlackElo "2428"]
[Annotator "NA"]
[PlyCount "42"]
[EventDate "2018.10.03"]
[EventType "team-tourn"]
[EventCountry "GER"]
[SourceTitle "playchess.com"]
[Source "ChessBase"]
[SourceQuality "1"]
[TimeControl "40/5400+30:1800+30"]

1. Nf3 {[%emt 0:00:00]} Nf6 {[%emt 0:00:12]} 2. g3 {[%emt 0:00:00]} g6 {[%emt 0:04:01]} 3. b3 {[%emt 0:00:15]} Bg7 {[%emt 0:00:11]} 4. Bb2 {[%emt 0:00:06]} O-O {[%emt 0:01:18]} 5. Bg2 {[%emt 0:00:22]} d5 {[%emt 0:07:23]} 6. c4 {[%emt 0:02:05]} c6 {[%emt 0:01:00]} 7. O-O {[%emt 0:01:21]} Bf5 {[%emt 0:03:11]} 8. d3 {[%emt 0:03:20]} a5 {[%emt 0:04:30]} 9. Nbd2 {[%emt 0:04:26] A11: English Opening: 1...c6} (9. a3 Na6 10. Nbd2 b5 11. cxb5 cxb5 12. Rc1 Rc8 13. Rxc8 Qxc8 14. Qa1 Qb7 15. Rc1 Rc8 16. Be5 Bd7 17. Rxc8+ Qxc8 18. Qc3 Qxc3 19. Bxc3 b4 20. axb4 Nxb4 21. Be5 e6 22. Bc7 a4 23. bxa4 {½-½ (23) Akopian,V (2673)-Sargissian,G (2643) Yerevan 2008}) 9... Na6 {[%emt 0:04:40]} 10. Rc1 {[%emt 0:11:11]} Re8 {[%emt 0:02:07]} 11. Qc2 {[%emt 0:06:21]} Qb6 $146 {[%emt 0:15:46]} ({Predecessor:} 11... Rc8 12. a3 Nc5 13. Rfd1 Qb6 14. Bd4 Nfd7 15. Bxg7 Kxg7 16. Qc3+ Nf6 {1-0 (54) Nieto Rodriguez,A (2205)-Rengifo Blancas,R (2055) Cali 2015}) 12. Bd4 {[%emt 0:04:42]} c5 {[%emt 0:07:46]} 13. Bxf6 {[%emt 0:03:20]} exf6 {[%emt 0:01:15]} 14. cxd5 {[%emt 0:05:47]} Rxe2 {[%emt 0:01:35]} 15. Nc4 {[%emt 0:00:17]} Rxc2 {[%emt 0:00:10]} 16. Nxb6 {[%emt 0:00:03]} Rxc1 {[%emt 0:00:12]} 17. Rxc1 {[%emt 0:01:08]} Rd8 {[%emt 0:01:14]} 18. d4 {[%emt 0:01:02]} Bf8 {[%emt 0:01:16]} 19. Bf1 {[%emt 0:05:08]} cxd4 {[%emt 0:21:01]} (19... Nb4 $15 20. dxc5 Nxd5) 20. Bxa6 {[%emt 0:00:58]} bxa6 {[%emt 0:00:28]} 21. Nxd4 {[%emt 0:01:25]} Be4 $11 {[%emt 0:01:58]} 1/2-1/2